bitfinex-derivatives/quotes_BTCF0:USTF0_20260214
["timestamp","ask_amount","ask_price","bid_price","bid_amount"]
[1771109531545,0.014291,70011.0,70005.0,0.028612]
[1771109531745,0.014291,70010.0,70005.0,0.01432]
[1771109531946,0.028611,70013.0,70005.0,0.028612]
[1771109532144,0.014291,70012.0,70005.0,0.028612]
[1771109532345,0.14296,70016.0,70012.0,0.01429]
[1771109532546,0.01429,70017.0,70011.0,0.014291]
[1771109533840,0.01432,70020.0,70012.0,0.014291]
[1771109534045,0.01432,70020.0,70014.0,0.01429]
[1771109534448,0.014289,70020.0,70014.0,0.01429]
[1771109536240,0.014289,70020.0,70013.0,0.02861]
[1771109536241,0.014289,70019.0,70013.0,0.02861]
[1771109537349,0.014289,70021.0,70014.0,0.01429]
[1771109537549,0.014289,70019.0,70013.0,0.02861]
[1771109538349,0.014289,70021.0,70014.0,0.01429]
[1771109538547,0.014289,70019.0,70013.0,0.02861]
[1771109539150,0.014289,70021.0,70015.0,0.01429]
[1771109539447,0.028578,70021.0,70016.0,0.01432]
[1771109539647,0.014289,70020.0,70016.0,0.01432]
[1771109540246,0.014289,70021.0,70016.0,0.01432]
[1771109540644,0.014289,70019.0,70016.0,0.01432]
[1771109540845,0.014289,70020.0,70016.0,0.01432]
[1771109541245,0.014289,70022.0,70016.0,0.01432]
[1771109541445,0.014289,70020.0,70016.0,0.01432]
[1771109542343,0.014289,70022.0,70016.0,0.01432]
[1771109542945,0.014289,70020.0,70016.0,0.01432]
[1771109543148,0.014289,70019.0,70016.0,0.01432]
[1771109543652,0.014289,70020.0,70016.0,0.01432]
[1771109544046,0.014289,70019.0,70016.0,0.01432]
[1771109544947,0.014289,70020.0,70016.0,0.01432]
[1771109545945,0.014229,70020.0,70016.0,0.01432]
[1771109546150,0.108492,70037.0,70027.0,0.014287]
[1771109546341,0.014285,70039.0,70031.0,0.014287]
[1771109546546,0.014285,70038.0,70031.0,0.028607]
[1771109547145,0.014286,70037.0,70031.0,0.028607]
[1771109547346,0.014285,70039.0,70032.0,0.014286]
[1771109548044,0.014285,70041.0,70034.0,0.028572]
[1771109548243,0.014285,70041.0,70035.0,0.01432]
[1771109548648,0.014284,70043.0,70037.0,0.014286]
[1771109548946,0.014284,70043.0,70038.0,0.01432]
[1771109551252,0.09273941,70045.0,70038.0,0.01432]
[1771109551644,0.028568,70043.0,70038.0,0.01432]
[1771109552353,0.014285,70042.0,70038.0,0.01432]
[1771109553251,0.014284,70043.0,70038.0,0.01432]
[1771109553755,0.028604,70047.0,70041.0,0.014285]
[1771109554355,0.014283,70048.0,70042.0,0.01432]
[1771109555255,0.014282,70050.0,70042.0,0.01432]
[1771109555450,0.014283,70049.0,70042.0,0.028604]
[1771109556456,0.014283,70048.0,70042.0,0.028604]
[1771109557456,0.014283,70048.0,70042.0,0.01432]
[1771109558759,0.014283,70048.0,70042.0,0.028604]
[1771109559356,0.014283,70048.0,70042.0,0.01432]
[1771109559561,0.014283,70048.0,70037.0,0.014285]
[1771109559562,0.014284,70046.0,70043.0,0.01432]
[1771109559860,0.014284,70046.0,70039.0,0.014285]
[1771109560273,0.014284,70046.0,70040.0,0.014285]
[1771109560469,0.014284,70046.0,70041.0,0.01432]
[1771109561275,0.014283,70047.0,70041.0,0.028605]
[1771109561573,0.014283,70047.0,70042.0,0.014284]
[1771109561765,0.014283,70047.0,70042.0,0.028568]
[1771109561959,0.014283,70047.0,70042.0,0.014284]
[1771109562370,0.014283,70047.0,70042.0,0.028568]
[1771109564473,0.014283,70047.0,70042.0,0.014284]
[1771109565275,0.014283,70047.0,70042.0,0.028568]
[1771109565461,0.014284,70046.0,70041.0,0.028605]
[1771109565867,0.014284,70045.0,70041.0,0.028605]
[1771109567064,0.014284,70046.0,70041.0,0.04289]
[1771109567373,0.028568,70046.0,70041.0,0.028605]
[1771109567970,0.014284,70046.0,70041.0,0.028605]
[1771109568172,0.028568,70046.0,70041.0,0.028605]
[1771109568472,0.08698625,70045.0,70025.0,0.21793846]
[1771109568668,0.014286,70035.0,70031.0,0.14288]
[1771109568975,0.014286,70034.0,70032.0,0.01432]
[1771109570169,0.014286,70033.0,70028.0,0.14288]
[1771109570373,0.014287,70032.0,70029.0,0.01432]
[1771109571875,0.014286,70033.0,70029.0,0.01432]
[1771109572969,0.014287,70031.0,70029.0,0.01432]
[1771109573274,0.014287,70032.0,70029.0,0.01432]
[1771109573572,0.014287,70031.0,70029.0,0.01432]
[1771109574073,0.014286,70033.0,70029.0,0.01432]
[1771109574669,0.028573,70033.0,70029.0,0.01432]
[1771109574872,0.014287,70032.0,70029.0,0.01432]
[1771109575171,0.014286,70035.0,70029.0,0.028607]
[1771109575373,0.014286,70037.0,70031.0,0.014287]
[1771109576172,0.014286,70037.0,70032.0,0.028607]
[1771109576573,0.014285,70040.0,70032.0,0.12524546]
[1771109576778,0.01432,70042.0,70035.0,0.014286]
[1771109576970,0.14288,70047.0,70039.0,0.014285]
[1771109576971,0.01432,70044.0,70039.0,0.014285]
[1771109577164,0.01432,70046.0,70039.0,0.014285]
[1771109577369,0.085804,70047.0,70039.0,0.01432]
[1771109577569,0.014284,70046.0,70040.0,0.014285]
[1771109577876,0.085804,70047.0,70041.0,0.014285]
[1771109578269,0.014284,70046.0,70040.0,0.014285]
[1771109578571,0.014284,70046.0,70041.0,0.014285]
[1771109578771,0.02127941,70047.0,70041.0,0.014285]
[1771109579179,0.014284,70046.0,70041.0,0.014285]
[1771109579475,0.014283,70048.0,70042.0,0.01432]
[1771109579675,0.014283,70047.0,70042.0,0.01432]
[1771109579871,0.01432,70051.0,70042.0,0.01432]
[1771109580071,0.014284,70046.0,70042.0,0.01432]
[1771109580275,0.014283,70048.0,70042.0,0.01432]
[1771109580475,0.014283,70048.0,70042.0,0.028604]
[1771109580476,0.014283,70047.0,70042.0,0.028604]
[1771109582674,0.02124941,70051.0,70042.0,0.028604]
[1771109582874,0.014284,70047.0,70042.0,0.028604]
[1771109583070,0.100049,70055.0,70042.0,0.01432]
[1771109583269,0.014369,70055.0,70051.0,0.014283]
[1771109583475,0.028602,70056.0,70051.0,0.028566]
[1771109583675,0.028602,70056.0,70051.0,0.014283]
[1771109583869,0.014281,70058.0,70051.0,0.014283]
[1771109584077,0.01432,70056.0,70051.0,0.014283]
[1771109584272,0.028602,70056.0,70051.0,0.014283]
[1771109584473,0.014282,70055.0,70050.0,0.014283]
[1771109584669,0.014282,70055.0,70051.0,0.014283]
[1771109585074,0.014282,70055.0,70051.0,0.014282]
[1771109585276,0.01418496,70055.0,70051.0,0.014282]
[1771109585784,0.01418496,70055.0,70050.0,0.014283]
[1771109585981,0.014282,70057.0,70051.0,0.01432]
[1771109586181,0.014282,70055.0,70051.0,0.028603]
[1771109586481,0.014282,70056.0,70051.0,0.028603]
[1771109586678,0.014281,70060.0,70054.0,0.014282]
[1771109586980,0.014281,70059.0,70054.0,0.028602]
[1771109587384,0.014281,70060.0,70055.0,0.014282]
[1771109588285,0.014281,70059.0,70054.0,0.028602]
[1771109588783,0.014281,70059.0,70055.0,0.014282]
[1771109588985,0.014281,70059.0,70054.0,0.028602]
[1771109589683,0.014281,70060.0,70055.0,0.014282]
[1771109590485,0.01428,70062.0,70057.0,0.014281]
[1771109590781,0.014281,70062.0,70056.0,0.014282]
[1771109591382,0.014281,70062.0,70057.0,0.01432]
[1771109591687,0.01428,70063.0,70057.0,0.028601]
[1771109592079,0.14288,70068.0,70057.0,0.028601]
[1771109592080,0.014279,70069.0,70057.0,0.028601]
[1771109592293,0.01428,70065.0,70059.0,0.014281]
[1771109592588,0.01428,70065.0,70060.0,0.01432]
[1771109592982,0.01428,70066.0,70060.0,0.028601]
[1771109593185,0.01428,70066.0,70060.0,0.01432]
[1771109593487,0.014279,70067.0,70061.0,0.014281]
[1771109593786,0.014279,70067.0,70061.0,0.028561]
[1771109593986,0.028559,70067.0,70061.0,0.01428]
[1771109594283,0.01428,70066.0,70061.0,0.01428]
[1771109595186,0.014279,70067.0,70062.0,0.01428]
[1771109596181,0.014277,70077.0,70069.0,0.014279]
[1771109596381,0.014278,70077.0,70072.0,0.014278]
[1771109596587,0.014278,70076.0,70071.0,0.014278]
[1771109596887,0.014275,70087.0,70077.0,0.014277]
[1771109597188,0.057116,70088.0,70078.0,0.01432]
[1771109597390,0.014276,70086.0,70079.0,0.014277]
[1771109597683,0.014276,70084.0,70079.0,0.014277]
[1771109597888,0.014276,70084.0,70078.0,0.12722166]
[1771109598188,0.014275,70087.0,70081.0,0.014277]
[1771109598381,0.014275,70087.0,70081.0,0.028597]
[1771109598983,0.014275,70087.0,70081.0,0.01432]
[1771109599185,0.057116,70088.0,70081.0,0.01432]
[1771109599391,0.014275,70087.0,70081.0,0.028597]
[1771109599688,0.014275,70087.0,70081.0,0.01432]
[1771109600586,0.028551,70087.0,70081.0,0.01432]
[1771109600782,0.014276,70086.0,70081.0,0.01432]
[1771109601488,0.053391,70088.0,70081.0,0.028597]
[1771109601687,0.014275,70087.0,70081.0,0.028597]
[1771109602287,0.01432,70090.0,70081.0,0.028597]
[1771109602689,0.014275,70091.0,70081.0,0.042873]
[1771109602883,0.014275,70090.0,70084.0,0.014276]
[1771109603087,0.014275,70091.0,70085.0,0.01432]
[1771109603592,0.014274,70092.0,70085.0,0.01432]
[1771109603788,0.014275,70091.0,70085.0,0.028596]
[1771109604184,0.014274,70092.0,70086.0,0.11290066]
[1771109604387,0.01432,70094.0,70088.0,0.014275]
[1771109604591,0.01432,70094.0,70090.0,0.014275]
[1771109604791,0.014271,70107.0,70091.0,0.01432]
[1771109604989,0.01427,70115.0,70091.0,0.01432]
[1771109604990,0.014273,70101.0,70094.0,0.014274]
[1771109605194,0.014273,70100.0,70095.0,0.01432]
[1771109605495,0.014272,70102.0,70095.0,0.028594]
[1771109606089,0.014273,70101.0,70095.0,0.028594]
[1771109606288,0.014273,70100.0,70095.0,0.01432]
[1771109606484,0.014273,70101.0,70095.0,0.01432]
[1771109606695,0.014273,70100.0,70095.0,0.01432]
[1771109607095,0.014272,70102.0,70095.0,0.028594]
[1771109607496,0.014272,70101.0,70095.0,0.028594]
[1771109607896,0.1428,70106.0,70097.0,0.014273]
[1771109608093,0.0688,70106.0,70098.0,0.01432]
[1771109608496,0.063072,70106.0,70098.0,0.01432]
[1771109608690,0.014272,70103.0,70098.0,0.01432]
[1771109609199,0.014272,70104.0,70098.0,0.01432]
[1771109609400,0.008272,70105.0,70098.0,0.028593]
[1771109609796,0.008272,70105.0,70098.0,0.042866]
[1771109609995,0.008272,70105.0,70098.0,0.028593]
[1771109610197,0.022544,70105.0,70098.0,0.028593]
[1771109610701,0.008272,70105.0,70098.0,0.028593]
[1771109610995,0.014271,70107.0,70098.0,0.028593]
[1771109610996,0.014272,70104.0,70098.0,0.028593]
[1771109611396,0.014272,70104.0,70098.0,0.01432]
[1771109611797,0.028544,70104.0,70098.0,0.01432]
[1771109611994,0.014272,70104.0,70098.0,0.01432]
[1771109612192,0.01432,70110.0,70098.0,0.01432]
[1771109612597,0.014272,70104.0,70098.0,0.028593]
[1771109612897,0.08369361,70104.0,70084.0,0.09862466]
[1771109613094,0.01925303,70092.0,70073.0,0.014278]
[1771109613398,0.014278,70074.0,70068.0,0.157079]
[1771109613600,0.014278,70074.0,70069.0,0.15712]
[1771109614192,0.014278,70075.0,70069.0,0.171399]
[1771109614896,0.014278,70075.0,70069.0,0.15712]
[1771109615096,0.014278,70075.0,70069.0,0.171399]
[1771109615997,0.014278,70073.0,70069.0,0.15712]
[1771109616197,0.014278,70073.0,70068.0,0.01432]
[1771109618103,0.014278,70074.0,70068.0,0.01432]
[1771109619103,0.01432,70077.0,70068.0,0.01432]
[1771109619305,0.014278,70074.0,70068.0,0.01432]
[1771109620097,0.014278,70074.0,70068.0,0.028599]
[1771109620304,0.014278,70073.0,70068.0,0.01432]
[1771109621503,0.028556,70073.0,70068.0,0.01432]
[1771109621704,0.014279,70072.0,70068.0,0.01432]
[1771109622408,0.014278,70074.0,70068.0,0.01432]
[1771109623206,0.014278,70073.0,70068.0,0.01432]
[1771109624004,0.014278,70074.0,70068.0,0.01432]
[1771109624609,0.014278,70075.0,70068.0,0.01432]
[1771109624812,0.014278,70076.0,70068.0,0.13134717]
[1771109624998,0.014278,70076.0,70069.0,0.014279]
[1771109625906,0.014277,70080.0,70074.0,0.10271082]
[1771109626108,0.014277,70080.0,70071.0,0.11703082]
[1771109626304,0.014277,70077.0,70071.0,0.11703082]
[1771109626505,0.014277,70077.0,70068.0,0.014279]
[1771109626506,0.014277,70080.0,70063.0,0.1428]
[1771109626704,0.014279,70070.0,70064.0,0.01432]
[1771109626908,0.014278,70073.0,70064.0,0.01432]
[1771109627106,0.014279,70069.0,70064.0,0.01432]
[1771109627305,0.014279,70070.0,70064.0,0.01432]
[1771109627506,0.014279,70070.0,70064.0,0.0286]
[1771109628014,0.028558,70070.0,70064.0,0.01432]
[1771109628712,0.014279,70069.0,70064.0,0.01432]
[1771109631213,0.014279,70071.0,70064.0,0.0286]
[1771109631618,0.014279,70070.0,70064.0,0.0286]
[1771109631811,0.014278,70073.0,70066.0,0.014279]
[1771109632007,0.014278,70073.0,70067.0,0.014279]
[1771109632720,0.014279,70071.0,70065.0,0.01428]
[1771109633117,0.028555,70072.0,70066.0,0.014279]
[1771109633318,0.014279,70071.0,70065.0,0.01428]
[1771109634020,0.014279,70070.0,70065.0,0.01428]
[1771109634322,0.014279,70071.0,70065.0,0.01428]
[1771109634619,0.014277,70072.0,70065.0,0.01428]
[1771109635020,0.028558,70071.0,70065.0,0.01428]
[1771109635221,0.014277,70072.0,70065.0,0.01428]
[1771109635421,0.028598,70073.0,70065.0,0.01428]
[1771109635719,0.014277,70072.0,70066.0,0.014279]
[1771109635921,0.028556,70072.0,70066.0,0.01428]
[1771109638022,0.01432,70077.0,70070.0,0.014279]
[1771109638216,0.014275,70090.0,70072.0,0.09532993]
[1771109638416,0.01432,70089.0,70083.0,0.014276]
[1771109638620,0.014275,70088.0,70083.0,0.014276]
[1771109638827,0.014275,70089.0,70083.0,0.014276]
[1771109639020,0.014275,70090.0,70083.0,0.014276]
[1771109639021,0.1428,70092.0,70084.0,0.014276]
[1771109639323,0.014275,70089.0,70084.0,0.014276]
[1771109640020,0.01432,70088.0,70084.0,0.014276]
[1771109640421,0.01432,70088.0,70085.0,0.014276]
[1771109640816,0.014275,70090.0,70086.0,0.014275]
[1771109641016,0.01432,70089.0,70084.0,0.014276]
[1771109641220,0.01432,70088.0,70085.0,0.014276]
[1771109641419,0.028595,70088.0,70083.0,0.014276]
[1771109642321,0.028595,70088.0,70084.0,0.014276]
[1771109642521,0.014276,70087.0,70082.0,0.014276]
[1771109643519,0.014276,70085.0,70080.0,0.014277]
[1771109643720,0.014276,70083.0,70079.0,0.01432]
[1771109644124,0.014276,70084.0,70079.0,0.01432]
[1771109644321,0.014277,70081.0,70079.0,0.01432]
[1771109645121,0.014276,70082.0,70079.0,0.01432]
[1771109645622,0.014276,70083.0,70079.0,0.01432]
[1771109645824,0.014276,70082.0,70079.0,0.01432]
[1771109646731,0.014277,70080.0,70079.0,0.01432]
[1771109647635,0.014277,70080.0,70074.0,0.014278]
[1771109647829,0.014277,70079.0,70075.0,0.01432]
[1771109648628,0.014277,70080.0,70075.0,0.01432]
[1771109648935,0.014277,70079.0,70075.0,0.01432]
[1771109650228,0.01432,70084.0,70075.0,0.01432]
[1771109650532,0.014277,70080.0,70075.0,0.01432]
[1771109651230,0.014277,70079.0,70075.0,0.01432]
[1771109651623,0.01432,70084.0,70075.0,0.01432]
[1771109651829,0.014277,70080.0,70075.0,0.01432]
[1771109652227,0.014277,70079.0,70075.0,0.01432]
[1771109652628,0.014277,70081.0,70070.0,0.014279]
[1771109652830,0.0005931,70083.0,70057.0,0.014281]
[1771109652831,0.01428,70063.0,70057.0,0.014281]
[1771109653022,0.01428,70064.0,70059.0,0.01432]
[1771109653223,0.01428,70066.0,70059.0,0.028601]
[1771109653627,0.01428,70065.0,70059.0,0.028601]
[1771109653831,0.01428,70065.0,70059.0,0.01432]
[1771109654036,0.01428,70065.0,70059.0,0.028601]
[1771109654534,0.01428,70065.0,70059.0,0.01432]
[1771109654831,0.01428,70065.0,70054.0,0.014282]
[1771109654832,0.01428,70063.0,70060.0,0.01432]
[1771109655135,0.014281,70061.0,70057.0,0.01432]
[1771109655332,0.014281,70059.0,70054.0,0.1428]
[1771109655532,0.01432,70060.0,70036.0,0.10271484]
[1771109655732,0.014283,70049.0,70042.0,0.01432]
[1771109655925,0.014283,70048.0,70042.0,0.01432]
[1771109656130,0.014283,70050.0,70042.0,0.01432]
[1771109656636,0.014283,70049.0,70042.0,0.01432]
[1771109656833,0.014283,70049.0,70042.0,0.028604]
[1771109657134,0.014284,70047.0,70042.0,0.01432]
[1771109659245,0.014284,70047.0,70042.0,0.028604]
[1771109660136,0.014284,70047.0,70042.0,0.014284]
[1771109662433,0.01432,70050.0,70040.0,0.171405]
[1771109662434,0.014277,70078.0,70050.0,0.10478733]
[1771109662635,0.1999,70089.0,70030.0,0.14271986]
[1771109662636,0.014279,70069.0,70064.0,0.01428]
[1771109662835,0.01432,70068.0,70064.0,0.01428]
[1771109663234,0.028599,70068.0,70063.0,0.01428]
[1771109663541,0.014279,70067.0,70061.0,0.01428]
[1771109663742,0.01428,70066.0,70061.0,0.01428]
[1771109664540,0.01428,70065.0,70060.0,0.014281]
[1771109665240,0.014279,70067.0,70061.0,0.014281]
[1771109665443,0.01428,70066.0,70061.0,0.014281]
[1771109666430,0.014279,70067.0,70059.0,0.028601]
[1771109666431,0.01428,70064.0,70059.0,0.028601]
[1771109666637,0.01428,70064.0,70059.0,0.05186318]
[1771109667644,0.01428,70063.0,70059.0,0.05186318]
[1771109667844,0.01428,70064.0,70059.0,0.05186318]
[1771109668745,0.01428,70063.0,70059.0,0.05186318]
[1771109668939,0.01428,70064.0,70059.0,0.05186318]
[1771109670247,0.01428,70064.0,70058.0,0.014281]
[1771109670450,0.01428,70063.0,70059.0,0.05186318]
[1771109672152,0.01428,70066.0,70058.0,0.01432]
[1771109672350,0.014281,70059.0,70058.0,0.01432]
[1771109672751,0.014281,70060.0,70058.0,0.01432]
[1771109673254,0.01432,70060.0,70052.0,0.01432]
[1771109673456,0.014283,70051.0,70046.0,0.10436556]
[1771109673753,0.014283,70051.0,70048.0,0.03754318]
[1771109674152,0.014283,70052.0,70048.0,0.03754318]
[1771109674350,0.014283,70051.0,70048.0,0.03754318]
[1771109675456,0.028566,70052.0,70048.0,0.03754318]
[1771109675656,0.014283,70052.0,70048.0,0.03754318]
[1771109676257,0.014283,70051.0,70048.0,0.03754318]
[1771109676662,0.014282,70052.0,70047.0,0.01432]
[1771109676861,0.014282,70052.0,70048.0,0.03754318]
[1771109677956,0.014282,70052.0,70047.0,0.01432]
[1771109678158,0.014282,70052.0,70048.0,0.03754318]
[1771109678662,0.028565,70052.0,70048.0,0.03754318]
[1771109678862,0.014283,70052.0,70048.0,0.03754318]
[1771109679063,0.014283,70048.0,70041.0,0.11920905]
[1771109679259,0.014284,70047.0,70042.0,0.01432]
[1771109679563,0.014283,70048.0,70042.0,0.05186318]
[1771109682064,0.014283,70049.0,70042.0,0.05186318]
[1771109682660,0.014289,70019.0,70018.0,0.00013343]
[1771109682966,0.01429,70015.0,70014.0,0.01432]
[1771109683762,0.01429,70016.0,70014.0,0.01432]
[1771109684668,0.01429,70017.0,70014.0,0.01432]
[1771109685157,0.02858,70017.0,70014.0,0.01432]
[1771109685361,0.01429,70017.0,70006.0,0.11492998]
[1771109685559,0.014291,70010.0,70007.0,0.15716]
[1771109685758,0.014291,70011.0,70008.0,0.01432]
[1771109686066,0.014291,70010.0,70008.0,0.01432]
[1771109686662,0.014291,70013.0,70008.0,0.01432]
[1771109687161,0.01432,70019.0,70009.0,0.01436]
[1771109687162,0.014291,70010.0,70009.0,0.01436]
[1771109687356,0.01429,70018.0,70003.0,0.01436]
[1771109687357,0.014292,70004.0,70003.0,0.01436]
[1771109687563,0.014293,70002.0,70001.0,0.01436]
[1771109687866,0.014292,70004.0,69998.0,0.14288]
[1771109688063,0.014293,70003.0,69998.0,0.14288]
[1771109688265,0.014293,70003.0,69999.0,0.01436]
[1771109688666,0.014293,70002.0,69999.0,0.01436]
[1771109688868,0.014293,70003.0,69999.0,0.01436]
[1771109689364,0.014292,70004.0,69999.0,0.01436]
[1771109689568,0.014293,70003.0,70000.0,0.01436]
[1771109690864,0.014292,70004.0,69999.0,0.01436]
[1771109691769,0.014292,70003.0,69999.0,0.01436]
[1771109692664,0.014293,70002.0,69999.0,0.01436]
[1771109693369,0.014292,70003.0,69999.0,0.01436]
[1771109693570,0.028585,70003.0,69999.0,0.01436]
[1771109693871,0.014293,70002.0,69999.0,0.01436]
[1771109694372,0.014294,69997.0,69995.0,0.14288]
[1771109695172,0.014294,69997.0,69996.0,0.01436]
[1771109696470,0.014294,69997.0,69995.0,0.0794199]
[1771109696874,0.014294,69997.0,69993.0,0.01436]
[1771109697667,0.014293,70002.0,69994.0,0.10063798]
[1771109697873,0.06092764,70033.0,70011.0,0.10063798]
[1771109698064,0.014286,70035.0,70020.0,0.10063798]
[1771109698270,0.15728,70034.0,70027.0,0.014288]
[1771109698469,0.014285,70038.0,70027.0,0.014287]
[1771109698669,0.028646,70037.0,70029.0,0.10063798]
[1771109698973,0.014286,70034.0,70030.0,0.10063798]
[1771109699168,0.06090556,70050.0,70030.0,0.10063798]
[1771109699169,0.014284,70044.0,70038.0,0.014285]
[1771109699473,0.028644,70043.0,70038.0,0.014285]
[1771109700072,0.01436,70043.0,70036.0,0.11492398]
[1771109700275,0.014285,70040.0,70034.0,0.01436]
[1771109700473,0.014288,70025.0,70019.0,0.014289]
[1771109700675,0.157205,70039.0,70016.0,0.14292]
[1771109700676,0.01429,70018.0,70016.0,0.14292]
[1771109700870,0.014289,70018.0,70017.0,0.01436]
[1771109701874,0.00848678,70020.0,70017.0,0.01436]
[1771109702178,0.014289,70019.0,70012.0,0.014291]
[1771109702371,0.01429,70017.0,70013.0,0.15728]
[1771109703175,0.01429,70015.0,70013.0,0.15728]
[1771109703382,0.01429,70017.0,70006.0,0.014292]
[1771109703577,0.014291,70009.0,70007.0,0.01436]
[1771109703780,0.014289,70018.0,70008.0,0.01436]
[1771109703781,0.014291,70010.0,70008.0,0.01436]
[1771109703977,0.014292,70007.0,70003.0,0.14292]
[1771109704282,0.014292,70006.0,70000.0,0.14292]
[1771109704578,0.014292,70005.0,70001.0,0.01436]
[1771109705380,0.014292,70005.0,69998.0,0.014293]
[1771109705582,0.014292,70005.0,69999.0,0.01436]
[1771109706179,0.014291,70009.0,69999.0,0.01436]
[1771109706579,0.028584,70004.0,69999.0,0.01436]
[1771109706986,0.014292,70004.0,69999.0,0.01436]
[1771109707384,0.014292,70003.0,69999.0,0.01536]
[1771109707892,0.014293,70001.0,69999.0,0.01536]
[1771109708885,0.014293,70002.0,69999.0,0.01536]
[1771109709283,0.014293,70001.0,69999.0,0.01536]
[1771109709687,0.014293,70000.0,69999.0,0.01536]
[1771109710381,0.014293,69999.0,69998.0,0.028721]
[1771109711789,0.028586,70001.0,69998.0,0.028721]
[1771109712187,0.014293,70000.0,69996.0,0.01436]
[1771109713489,0.014293,70001.0,69996.0,0.01436]
[1771109718296,0.028586,70001.0,69996.0,0.01436]
[1771109718597,0.028652,70005.0,69997.0,0.014294]
[1771109718899,0.028652,70005.0,70003.0,0.014292]
[1771109718900,0.01436,70005.0,70003.0,0.014292]
[1771109719198,0.01436,70007.0,70003.0,0.014292]
[1771109719400,0.01436,70007.0,70002.0,0.014293]
[1771109720395,0.01436,70007.0,70003.0,0.014292]
[1771109721097,0.14292,70019.0,70004.0,0.11049822]
[1771109721297,0.14292,70019.0,70012.0,0.01429]
[1771109721298,0.01436,70018.0,70012.0,0.01429]
[1771109721599,0.01429,70017.0,70011.0,0.014291]
[1771109721898,0.014289,70020.0,70016.0,0.01429]
[1771109721899,0.01436,70020.0,70016.0,0.01429]
[1771109722099,0.01436,70028.0,70027.0,0.014288]
[1771109722301,0.01436,70028.0,70025.0,0.014288]
[1771109722694,0.01436,70030.0,70027.0,0.014288]
[1771109723101,0.014286,70034.0,70028.0,0.014287]
[1771109723400,0.09275741,70036.0,70035.0,0.014286]
[1771109723696,0.01436,70038.0,70036.0,0.014286]
[1771109723898,0.09724565,70053.0,70034.0,0.014286]
[1771109724102,0.01428,70065.0,70034.0,0.014286]
[1771109724103,0.014283,70048.0,70043.0,0.014284]
[1771109724301,0.14292,70052.0,70051.0,0.014283]
[1771109724494,0.15728,70052.0,70050.0,0.014283]
[1771109724795,0.15728,70052.0,70051.0,0.014283]
[1771109724990,0.09377838,70052.0,70051.0,0.014283]
[1771109725398,3.8e-07,70052.0,70051.0,0.014283]
[1771109726201,0.014281,70059.0,70052.0,0.014282]
[1771109726397,0.01436,70058.0,70052.0,0.057134]
[1771109726605,0.014282,70057.0,70053.0,0.042852]
[1771109726799,0.014281,70060.0,70054.0,0.014282]
[1771109726999,0.014281,70062.0,70055.0,0.014282]
[1771109727204,0.01436,70060.0,70056.0,0.014282]
[1771109727397,0.028641,70060.0,70056.0,0.042852]
[1771109727597,0.028641,70060.0,70057.0,0.042852]
[1771109727802,0.028641,70060.0,70058.0,0.042852]
[1771109728103,0.014281,70059.0,70056.0,0.042852]
[1771109728303,0.014281,70059.0,70053.0,0.028564]
[1771109728304,0.014281,70059.0,70054.0,0.042852]
[1771109728806,0.014281,70059.0,70055.0,0.042852]
[1771109729002,0.014281,70059.0,70054.0,0.042852]
[1771109729402,0.014281,70059.0,70055.0,0.042852]
[1771109729603,0.014281,70057.0,70054.0,0.042852]
[1771109729999,0.00704041,70062.0,70056.0,0.042852]
[1771109730204,0.014281,70059.0,70054.0,0.057134]
[1771109730408,0.01436,70060.0,70054.0,0.042852]
[1771109730598,0.028641,70060.0,70055.0,0.042852]
[1771109731000,0.028641,70060.0,70056.0,0.042852]
[1771109731200,0.01436,70060.0,70056.0,0.042852]
[1771109731404,0.01436,70060.0,70055.0,0.014282]
[1771109731405,0.09724565,70052.0,70036.0,0.14288]
[1771109731608,0.014285,70041.0,70037.0,0.01436]
[1771109731807,0.014285,70041.0,70038.0,0.01436]
[1771109732706,0.014285,70040.0,70038.0,0.01436]
[1771109734613,0.014287,70030.0,70024.0,0.11049422]
[1771109734805,0.014287,70030.0,70025.0,0.01436]
[1771109734998,0.014287,70032.0,70025.0,0.01436]
[1771109735202,0.014287,70031.0,70025.0,0.11056622]
[1771109736005,0.014287,70031.0,70025.0,0.12485422]
[1771109736204,0.014287,70029.0,70025.0,0.01436]
[1771109736604,0.014287,70030.0,70025.0,0.01436]
[1771109738411,0.014287,70031.0,70025.0,0.01436]
[1771109738712,0.014287,70031.0,70025.0,0.028648]
[1771109739215,0.014287,70032.0,70025.0,0.028648]
[1771109740113,0.014287,70031.0,70025.0,0.028648]
[1771109741412,0.014287,70031.0,70025.0,0.01436]
[1771109742008,0.014287,70031.0,70025.0,0.12897483]
[1771109742210,0.014287,70031.0,70025.0,0.028648]
[1771109743313,0.014288,70033.0,70027.0,0.014288]
[1771109743314,0.014286,70033.0,70027.0,0.014288]
[1771109743514,0.014286,70034.0,70027.0,0.11390392]
[1771109743716,0.014286,70034.0,70028.0,0.01436]
[1771109744117,0.014286,70033.0,70028.0,0.01436]
[1771109745211,0.014286,70034.0,70028.0,0.01436]
[1771109745619,0.014286,70033.0,70028.0,0.01436]
[1771109746215,0.01436,70037.0,70028.0,0.028647]
[1771109746216,0.014286,70036.0,70028.0,0.028647]
[1771109746613,0.014286,70034.0,70028.0,0.01436]
[1771109746812,0.028572,70034.0,70028.0,0.01436]
[1771109747122,0.014286,70034.0,70028.0,0.01436]
[1771109747928,0.028572,70034.0,70028.0,0.01436]
[1771109748130,0.028572,70034.0,70026.0,0.014288]
[1771109748131,0.014288,70028.0,70026.0,0.01436]
[1771109748327,0.014288,70026.0,70024.0,0.14288]